Cogmind - Beta 13 @@@ ROGUE MODE // 2024.04.06 @ 23:39:39 Player: Bbenedict8 Result: Destroyed by as-78986 with Assembled Rifle Performance ------------- Evolutions (0) 0 Regions Visited (2) 400 Robots Destroyed (13) 65 Value Destroyed (412) 412 Prototype IDs (2) 40 Alien Tech Used (0) 0 Bonus (0) 0 TOTAL SCORE: 917 Bonus ------- None Cogmind --------- Core Integrity 0/250 Matter 299/300 Energy 250/250 System Corruption 0% Temperature Cool (0) Movement Walking (120) Location -10/Mines Parts ------- > --- POWER (1) -------- Ion Engine > --- PROPULSION (2) --- Aluminum Leg Aluminum Leg > --- UTILITY (2) ------ Medium Storage Unit Targeting Computer > --- WEAPON (2) ------- Light Assault Rifle > --- INVENTORY (10) --- Ion Engine Heat Sink Medium Storage Unit Light Assault Rifle Peak State ------------ > --- POWER ------------ Light Nuclear Core > --- PROPULSION ------- Aluminum Leg > --- UTILITY ---------- Medium Storage Unit Targeting Computer > --- WEAPON ----------- Light Assault Rifle Light Assault Rifle > --- INVENTORY -------- Ion Engine Ion Engine Heat Sink Medium Storage Unit EM Pulse Gun [Rating: 8] Favorites ----------- Power Light Nuclear Core Engine Light Ion Engine Power Core Light Nuclear Core Propulsion Wheel Leg Aluminum Leg Wheel Wheel Utility Medium Storage Unit Storage Medium Storage Unit Processor Targeting Computer Weapon Light Assault Rifle Energy Gun Medium Laser Ballistic Gun Light Assault Rifle Build | -11 -10 -10 ------- Run | Yrd Mat Min Slots Evolved . | . . . Power . | . . . Propulsion . | . . . Utility . | . . . Weapon . | . . . Parts Attached 15 | 5 3 7 Power 3 | 1 . 2 Engine 2 | 1 . 1 Core 1 | . . 1 Reactor . | . . . Propulsion 4 | 2 . 2 Treads . | . . . Leg 2 | . . 2 Wheel 2 | 2 . . Hover . | . . . Flight . | . . . Utility 3 | . 3 . Device . | . . . Storage 2 | . 2 . Processor 1 | . 1 . Hackware . | . . . Protection . | . . . Artifact . | . . . Weapon 5 | 2 . 3 Energy Gun 2 | 1 . 1 Energy Cannon . | . . . Ballistic Gun 3 | 1 . 2 Ballistic Cannon . | . . . Launcher . | . . . Special Weapon . | . . . Impact Weapon . | . . . Slashing Weapon . | . . . Piercing Weapon . | . . . Special Melee Weapon . | . . . Unidentified Prototypes . | . . . Parts Lost 7 | . 2 5 Power 2 | . 1 1 Propulsion 2 | . 1 1 Utility . | . . . Weapon 3 | . . 3 Highest Loss Streak 3 | . 2 3 To Critical Strikes . | . . . Average Slot Usage (%) 83 | . 88 82 Engine 3 | . 12 . Core 7 | . . 9 Leg 9 | . . 13 Wheel 8 | . 28 1 Storage 13 | . 10 14 Processor 12 | . 8 14 Energy Gun 4 | . 14 1 Ballistic Gun 22 | . 14 26 Naked Turns . | . . . Heaviest Build 18 | 6 16 18 Greatest Support 20 | 20 20 20 Greatest Overweight (x) 3 | . 1 3 Average Overweight (x) . | . . . Largest Inventory Capacity 10 | 5 10 10 Average Capacity 9 | 5 8 10 Most Carried 6 | 3 6 6 Average Carried 4 | 1 3 4 Final Capacity 10 | 5 10 10 Final Carried 6 | 1 6 4 Class Distribution -------------------- 100% | Mutant Dominant Class ---------------- Mutant | -10/Materials Mutant | -10/Mines Resources | -11 -10 -10 ----------- Run | Yrd Mat Min Matter Collected 434 | 252 39 143 Remotely . | . . . Salvage Created 542 | 37 159 346 Parts 30 | 2 9 19 Haulers Intercepted . | . . . Recyclers Shooed . | . . . Parts Field Recycled . | . . . Retrieved Matter . | . . . Parts Self-Destructed . | . . . Prevented . | . . . Kills | -11 -10 -10 ------- Run | Yrd Mat Min Combat Hostiles Destroyed 11 | 1 3 7 Guns 10 | 1 3 6 AOE 1 | . . 1 Classes Destroyed 3 | 1 1 1 Builder 1 | . 1 . Tunneler 1 | . . 1 Grunt 11 | 1 3 7 Best Kill Streak 3 | 1 3 3 Combat Bots Only 2 | 1 2 2 Max Kills in Single Turn 1 | 1 1 1 Gunslinging . | . . . Exploded 1 | . . 1 Melee . | . . . Uniques/NPCs Destroyed . | . . . Combat | -11 -10 -10 -------- Run | Yrd Mat Min Hostile Shots Fired 109 | 3 42 64 Missed 22 | . 8 14 Damage Taken 957 | 33 319 605 Core 258 | 12 72 174 Absorbed by Shields . | . . . Core Remaining (%) 95 | 95 . . Volleys Fired 73 | 2 19 52 Largest 2 | 2 2 2 Hottest 70 | 70 70 70 Shots Fired 144 | 4 38 102 Gun 144 | 4 38 102 Cannon . | . . . Launcher . | . . . Special . | . . . Kinetic 114 | 2 19 93 Thermal 24 | 2 19 3 Explosive . | . . . Electromagnetic 6 | . . 6 Robot Hit Streak 9 | 2 5 9 Robot Miss Streak 5 | 1 3 5 Penetration Max . | . . . Secondary Targets 4 | . 2 2 Max Gunslinging Chain 1 | . 1 1 Shots Hit Robots 57 | 3 20 34 Core Hits 31 | 2 13 16 Critical Kills . | . . . Critical Parts Destroyed . | . . . Critical Strikes 2 | . 1 1 Burn 2 | . 1 1 Melee Attacks . | . . . Impact . | . . . Slashing . | . . . Piercing . | . . . Sneak Attacks . | . . . Combat Hostiles . | . . . Follow-up Attacks . | . . . Damage Inflicted 623 | 34 242 347 Guns 599 | 34 242 323 Cannons . | . . . Explosions 24 | . . 24 Melee . | . . . Ramming . | . . . Kinetic 318 | 9 81 228 Thermal 235 | 25 161 49 Explosive . | . . . Electromagnetic 70 | . . 70 Impact . | . . . Slashing . | . . . Piercing . | . . . Highest Corruption . | . . . Average Corruption . | . . . Corruption Purged . | . . . Corruption Blocked . | . . . Overload Shots . | . . . Overflow Damage . | . . . Projectiles . | . . . Explosions . | . . . Melee . | . . . Knockbacks . | . . . Impact . | . . . Kinetic . | . . . Secondary . | . . . Self-Inflicted Damage . | . . . Shots . | . . . Rammed . | . . . Targets Rammed . | . . . Kicked . | . . . Crushed . | . . . Highest Temperature 202 | 66 202 62 Average Temperature 34 | 34 67 12 Received Heat Transfer 387 | 18 102 267 Siege Activations . | . . . Robots Corrupted . | . . . Combat Hostiles . | . . . Parts Fried . | . . . Impact Corruptions . | . . . Robots Melted . | . . . Combat Hostiles . | . . . Parts Melted . | . . . Heat Transferred 827 | 74 555 198 Parts Sabotaged . | . . . Parts Stolen . | . . . Parts Stripped . | . . . Power Chain Reactions 1 | . . 1 Alert | -11 -10 -10 ------- Run | Yrd Mat Min Peak Influence 96 | 20 93 96 Initial 31 | . 13 31 Average 37 | 3 38 41 Maximum Alert Level . | . . . Low Security (%) 100 | 100 100 100 Level 1 . | . . . Level 2 . | . . . Level 3 . | . . . Level 4 . | . . . Level 5 . | . . . High Security . | . . . Max Security . | . . . Squads Dispatched 1 | . 1 . Investigation . | . . . Extermination . | . . . Reinforcement 1 | . 1 . Assault . | . . . Garrison . | . . . Intercept . | . . . Searches Triggered . | . . . Construction Impeded . | . . . Haulers Reinforced . | . . . Active Scanning Responses . | . . . Cargo Convoy Interrupts . | . . . Stealth | -11 -10 -10 --------- Run | Yrd Mat Min Distress Signals . | . . . Communications Jammed . | . . . Distress Signals . | . . . Times Spotted 17 | 1 8 8 Peak Tracking Total 4 | 1 4 3 Tactical Retreats . | . . . Traps | -11 -10 -10 ------- Run | Yrd Mat Min Traps Triggered . | . . . Indirectly . | . . . Trap Hack Attempts . | . . . Triggered . | . . . Disarmed . | . . . Reprogrammed . | . . . Reused . | . . . Traps Extracted . | . . . Installed . | . . . Triggered . | . . . Machines | -11 -10 -10 ---------- Run | Yrd Mat Min Machines Disabled . | . . . Max in Single Turn . | . . . Machines Repaired . | . . . Machines Dismantled . | . . . Machines Sabotaged . | . . . Overloaded Fab Kills . | . . . Hacking | -11 -10 -10 --------- Run | Yrd Mat Min Machines Accessed 1 | . 1 . Terminals 1 | . 1 . Fabricators . | . . . Repair Stations . | . . . Recycling Units . | . . . Scanalyzers . | . . . Garrison Access . | . . . Total Hacks 2 | . 2 . Successful 2 | . 2 . Failed . | . . . Catastrophic . | . . . Database Lockouts . | . . . Manual . | . . . Terminals 2 | . 2 . Fabricators . | . . . Repair Stations . | . . . Recycling Units . | . . . Scanalyzers . | . . . Garrison Access . | . . . Terminal Hacks 2 | . 2 . Record 1 | . 1 . Prototype ID Bank 1 | . 1 . Fabricator Hacks . | . . . Repair Station Hacks . | . . . Recycling Unit Hacks . | . . . Scanalyzer . | . . . Garrison Access Hacks . | . . . Unauthorized Hacks . | . . . Terminals . | . . . Fabricators . | . . . Repair Stations . | . . . Recycling Units . | . . . Scanalyzers . | . . . Garrison Access . | . . . Data Cores Recovered . | . . . Used . | . . . Hacking Detections 1 | . 1 . Full Trace Events . | . . . Feedback Events . | . . . Feedback Blocked . | . . . Robot Schematics Acquired . | . . . Robots Built . | . . . Authchips . | . . . Time . | . . . Total Robot Build Rating . | . . . Part Schematics Acquired . | . . . Parts Built . | . . . Authchips . | . . . Time . | . . . Total Part Build Rating . | . . . Parts Repaired . | . . . Time . | . . . Parts Recycled . | . . . Recycled Matter . | . . . Retrieved Matter . | . . . Retrieved Components . | . . . Parts Scanalyzed . | . . . Part Schematics Acquired . | . . . Parts Damaged . | . . . Bothacking | -11 -10 -10 ------------ Run | Yrd Mat Min Used RIF Installer . | . . . Robots Hacked . | . . . Non-combat . | . . . Combat . | . . . Robot Hacks Applied . | . . . Relay Couplers Released . | . . . Fabnet Peak Effective % . | . . . Robots Rewired . | . . . Allies Hacked . | . . . Hacks Repelled . | . . . Allies | -11 -10 -10 -------- Run | Yrd Mat Min Total Allies . | . . . Largest Group . | . . . Highest-Rated Group . | . . . Highest-Rated Ally . | . . . Total Orders . | . . . Ally Attacks . | . . . Total Damage . | . . . Kills . | . . . Allies Corrupted . | . . . Allies Melted . | . . . Intel | -11 -10 -10 ------- Run | Yrd Mat Min Robot Analysis Total . | . . . Derelict Logs Recovered . | . . . Drone Launches . | . . . Drone Recoveries . | . . . Exploration | -11 -10 -10 ------------- Run | Yrd Mat Min Turns Passed 867 | 79 217 571 Spaces Moved 424 | 86 188 150 Core 23 | 22 . 1 Treads . | . . . Legs 107 | . . 107 Wheels 294 | 64 188 42 Hover . | . . . Flight . | . . . Fastest Speed 50 | 50 80 95 Average Speed 104 | 72 80 152 Slowest Speed 200 | 80 95 200 Overloaded Moves . | . . . Propulsion Burnouts . | . . . Robots Hopped . | . . . Cave-ins Triggered . | . . . Exploration Rate (%) 19 | 5 27 27 Regions Visited 2 Branch Regions 1 Pre-discovered Areas . | . . . Known Exits Taken . | . . . Unknown Exits Taken 2 | 1 1 . Scrap Searched . | . . . Spaces Dug . | . . . Terrain Destroyed 1 | . . 1 Melee . | . . . Projectile . | . . . AOE 1 | . . 1 Terrain Rammed . | . . . Walls Destroyed . | . . . Machines Disabled . | . . . Actions | -11 -10 -10 --------- Run | Yrd Mat Min Total 727 | 98 221 408 Wait 195 | . . 195 Move 422 | 85 187 150 Hop . | . . . Pick Up 19 | 6 9 4 Fast Attach . | . . . Attach 14 | 5 3 6 Detach 1 | . 1 . Swap 1 | . . 1 Drop 2 | . 2 . Fire 73 | 2 19 52 Melee . | . . . Ram . | . . . Kick . | . . . Crush . | . . . Escape Stasis . | . . . Rewire . | . . . Trap . | . . . Miscellaneous . | . . . Route ------- -11/Scrapyard -10/Materials (discovered 2 exits: [*Mat] / [*Min]) -10/Mines History --------- Turn | Location | Event 2 | -11/Scrapyard | Met Revision 17 57 | -11/Scrapyard | Discovered new exit (range 8) 80 | -11/Scrapyard | Entered Materials 182 | -10/Materials | Discovered new exit (range 12) 270 | -10/Materials | Discovered new exit (range 10) 297 | -10/Materials | Entered Mines 315 | -10/Mines | Build established: Mutant 343 | -10/Mines | Core integrity fell below 50% 382 | -10/Mines | Lost 3 parts (1n2w) 458 | -10/Mines | Excavation squad dispatched 458 | -10/Mines | A large section of the Mines collapsed 708 | -10/Mines | Excavation squad dispatched 803 | -10/Mines | Core integrity fell below 20% 868 | -10/Mines | Destroyed by as-78986 with Assembled Rifle Last Messages --------------- confirmed. Dispatching additional escorted excavation squad. 00711_ T-07 Excavator is excavating. 00713_ Acquired 42 matter. 00716_ T-07 Excavator is excavating. 00795_ G-34 Mercenary destroyed. 00795_ Switching to secondary target: G-34 Mercenary. 00797_ Lgt. Nuclear Core destroyed. 00806_ G-34 Mercenary destroyed. 00814_ Acquired 15 matter. 00818_ Acquired Aluminum Leg. 00821_ Acquired 20 matter. 00846_ T-07 Excavator destroyed. 00847_ G-34 Mercenary destroyed. 00850_ T-07 Excavator destroyed. 00859_ Chain reaction triggered in Ion Engine. 00859_ G-34 Mercenary destroyed. 00861_ Acquired 11 matter. 00866_ EM Pulse Gun destroyed. Map ----- +----------------------------------------------------+ | ?????????????????????????????????????????????? | | ?????????????????????????????????????????????? | | ?????????????????????????????????????????????? | | ?????????????????????????????????????????????? | | ?????????????????????????????????????????????? | | ?????????????????????????????????????????????? | | ?????????????????????????????????????????????? | | ?????????????????????????????????????????????? | | ?????????????????????????????????????????????? | | ?????????????????????????????????????????????? | | ?????????????????????????????????????????????? | | ?????????????????????????????????????????????? | | ?????????????????????????????????????#???????? | | ?????????????????????????????????????# ??????? | | ????????????????????????????????????## ??????? | | ???????????????????????????????????## ??????? | | ??????????????????????????????????## ??????? | | ?????????????????????????????????## ??????? | | ??????????????????????????????#### #?????? | | ???????????????#####??????????# % ##???? | | ??????????????## ###????????# ## ##??? | | ??????????????# ##???????# #?# #####?? | | ??? ?????????# ##??????# #???# ###?? | | ??# ?????????# ##?????# "##??## #?? | | ??? ?????????# #######; ##??# #?? | | ???? ????????# [%= ! @ ! a ##?##! ##?? | | ?????# ???????# %=%* |= % ##?#%##??? | | ??????# $??????# t=;##### ### #???? | | ??????# ????## =#????## ## #???? | | ??????# #??## #?????# # #???? | | ???????# ### #?????# ##??? | | ?????????# *%* ##?????## ! #??? | | ?????????## r%! ##???????## ## ##??? | | ??????????## ###?????????# ### ##???? | | ???????????# ##???????????# #?## ####????? | | ???????????# ##????????????# #??# #???????? | | ???????????## ##?????????????# #??# #???????? | | ????????????# ##??????????????# #### ########? | | ????????????# ????????????????#% # #? | | ????????????# ????????????????#=###### """ #? | | ????????????# ????????????????#*#????# """ #? | | ????????????# ????????????????# #????# """ #? | | ???????????? ?????????######## ###### #? | | ????????????##?????????# %!% """ #? | | ???????????????????????# ############# """ #? | | ???????????????????????# #???????????# """ #? | | ????????????????????#### #???????????# #? | | ????????????????????# #???????????########? | | ????????????????????# ####???????????????????? | | ????????????????????# #??????????????????????? | +----------------------------------------------------+ Best States ------------- Heat Dissipation 25 Energy Generation 14 Energy Capacity 250 Matter Stores 300 Matter Capacity 300 Sight Range 16 Terrain Scan Density 10 Evasion (%) 55 Targeting Accuracy 5 Item Schematics ----------------- None Robot Schematics ------------------ None Fabricated ------------ Nothing Alien Tech Used ----------------- None Achievements -------------- None Challenges ------------ None Game ------ Seed PointyActuatorChronowheel Manual? 0 Play Time 00:07:09 Cumulative 2.9 hours Start 2024.04.06 @ 23:32:33 End 2024.04.06 @ 23:39:39 Sessions 1 Manual Loads 0 Difficulty Rogue Special Mode None Game No. 3 Rogue 1 Adventurer 2 Explorer 0 Win Type - Total 0 Types 0/0/0/0/0/0/0/0/0 Lore% 7 Gallery% 7 Achievement% 9 Wizard Run 0 Options --------- Layout 1 ASCII 0 Keyboard 0 Movement Arrows Keybinds 0 Fullscreen 1 Font 32/SmallcapsGlow Map View 50x35 Zoom Use 0% Tactical HUD 1 Map Filters NONE Filters NONE Steam 1 RUN: b9a617c5-4ade-4b22-aad7-9828b3c906f9